[Event "British Rapidplay Championship 2023"]
[Site "Mercure Bradford, Bankfield Hotel"]
[Date "2023.04.15"]
[Round "2.10"]
[White "Walker, David J"]
[Black "Sivanandan, Bodhana"]
[Result "1-0"]
[TimeControl "15 minutes plus 10 seconds per move"]
[WhiteElo "2250"]
[BlackElo "1561"]

1. c4 {[%clk 00:15:18]} e5 {[%clk 00:15:18]} {[%emt 00:00:02]} 2. Nc3 {[%clk
00:15:26]} {[%emt 00:00:02]} Nc6 {[%clk 00:15:26]} {[%emt 00:00:02]} 3. e3
{[%clk 00:15:32]} {[%emt 00:00:03]} Nge7 {[%clk 00:15:34]} {[%emt 00:00:03]} 4.
Nf3 {[%clk 00:15:38]} {[%emt 00:00:03]} g6 {[%clk 00:15:41]} {[%emt 00:00:04]}
5. h4 {[%clk 00:15:34]} {[%emt 00:01:47]} Bg7 {[%clk 00:12:58]} {[%emt
00:01:20]} 6. h5 {[%clk 00:15:40]} {[%emt 00:00:03]} d6 {[%clk 00:12:09]}
{[%emt 00:00:59]} 7. a3 {[%clk 00:15:00]} {[%emt 00:00:51]} Bg4 {[%clk
00:11:09]} {[%emt 00:01:10]} 8. h6 {[%clk 00:13:27]} {[%emt 00:01:42]} Bf8
{[%clk 00:09:57]} {[%emt 00:01:22]} 9. Be2 {[%clk 00:13:35]} {[%emt 00:00:03]}
Nf5 {[%clk 00:09:20]} {[%emt 00:00:47]} 10. d4 {[%clk 00:09:43]} {[%emt
00:04:03]} exd4 {[%clk 00:07:45]} {[%emt 00:01:44]} 11. Nxd4 {[%clk 00:09:50]}
{[%emt 00:00:02]} Bxe2 {[%clk 00:07:50]} {[%emt 00:00:06]} 12. Ncxe2 {[%clk
00:09:08]} {[%emt 00:00:52]} Ncxd4 {[%clk 00:07:26]} {[%emt 00:00:34]} 13. exd4
{[%clk 00:09:06]} {[%emt 00:00:12]} Be7 {[%clk 00:07:09]} {[%emt 00:00:27]} 14.
Bf4 {[%clk 00:08:09]} {[%emt 00:01:06]} Bg5 {[%clk 00:06:32]} {[%emt 00:00:48]}
15. Qd2 {[%clk 00:08:04]} {[%emt 00:00:14]} Bxf4 {[%clk 00:06:39]} {[%emt
00:00:04]} 16. Qxf4 {[%clk 00:08:13]} {[%emt 00:00:01]} c6 {[%clk 00:04:51]}
{[%emt 00:01:58]} 17. g4 {[%clk 00:07:50]} {[%emt 00:00:33]} Ne7 {[%clk
00:04:50]} {[%emt 00:00:10]} 18. O-O-O {[%clk 00:07:25]} {[%emt 00:00:35]} Qd7
{[%clk 00:04:46]} {[%emt 00:00:14]} 19. Nc3 {[%clk 00:06:40]} {[%emt 00:00:56]}
O-O-O {[%clk 00:04:44]} {[%emt 00:00:12]} 20. Rhe1 {[%clk 00:06:00]} {[%emt
00:00:49]} f5 {[%clk 00:04:36]} {[%emt 00:00:19]} 21. g5 {[%clk 00:05:36]}
{[%emt 00:00:34]} d5 {[%clk 00:04:07]} {[%emt 00:00:39]} 22. c5 {[%clk
00:04:37]} {[%emt 00:01:09]} Rhe8 {[%clk 00:03:56]} {[%emt 00:00:21]} 23. Re5
{[%clk 00:04:39]} {[%emt 00:00:08]} Ng8 {[%clk 00:03:42]} {[%emt 00:00:24]} 24.
Rde1 {[%clk 00:04:44]} {[%emt 00:00:05]} Rxe5 {[%clk 00:03:49]} {[%emt
00:00:02]} 25. Qxe5 {[%clk 00:04:50]} {[%emt 00:00:05]} Qc7 {[%clk 00:03:52]}
{[%emt 00:00:08]} 26. Kd2 {[%clk 00:03:35]} {[%emt 00:01:25]} Qxe5 {[%clk
00:03:35]} {[%emt 00:00:27]} 27. Rxe5 {[%clk 00:03:44]} {[%emt 00:00:01]} Kd7
{[%clk 00:03:42]} {[%emt 00:00:03]} 28. Ke3 {[%clk 00:03:49]} {[%emt 00:00:05]}
Ne7 {[%clk 00:03:48]} {[%emt 00:00:04]} 29. Kf4 {[%clk 00:03:49]} {[%emt
00:00:10]} b6 {[%clk 00:03:33]} {[%emt 00:00:25]} 30. Na4 {[%clk 00:03:56]}
{[%emt 00:00:03]} b5 {[%clk 00:03:40]} {[%emt 00:00:04]} 31. Nc3 {[%clk
00:04:04]} {[%emt 00:00:01]} a5 {[%clk 00:03:48]} {[%emt 00:00:02]} 32. Ne2
{[%emt 00:00:23]} b4 {[%clk 00:03:43]} 33. a4 {[%clk 00:04:08]} {[%emt
00:00:06]} b3 {[%clk 00:03:48]} {[%emt 00:00:05]} 34. Re3 {[%clk 00:03:57]}
{[%emt 00:00:21]} Rb8 {[%clk 00:03:50]} {[%emt 00:00:09]} 35. Nc1 {[%clk
00:03:44]} {[%emt 00:00:23]} Rb4 {[%clk 00:03:59]} {[%emt 00:00:02]} 36. Ke5
{[%clk 00:03:41]} {[%emt 00:00:12]} Rxa4 {[%clk 00:03:21]} {[%emt 00:00:48]} 37.
Rxb3 {[%clk 00:03:46]} {[%emt 00:00:06]} Ra1 {[%clk 00:02:55]} {[%emt
00:00:35]} 38. Nd3 {[%clk 00:03:30]} {[%emt 00:00:26]} Rd1 {[%clk 00:02:40]}
{[%emt 00:00:25]} 39. Kf6 {[%clk 00:03:13]} {[%emt 00:00:27]} a4 {[%clk
00:02:28]} {[%emt 00:00:23]} 40. Ne5+ {[%clk 00:03:02]} {[%emt 00:00:20]} Kd8
{[%clk 00:02:29]} {[%emt 00:00:09]} 41. Rb4 {[%clk 00:03:05]} {[%emt 00:00:07]}
Rd2 {[%clk 00:02:25]} {[%emt 00:00:14]} 42. Rxa4 {[%clk 00:03:00]} {[%emt
00:00:15]} Rxf2 {[%clk 00:02:31]} {[%emt 00:00:04]} 43. Ra8+ {[%clk 00:03:06]}
{[%emt 00:00:05]} Nc8 {[%clk 00:02:39]} {[%emt 00:00:01]} 44. Nxg6 {[%clk
00:02:54]} {[%emt 00:00:22]} hxg6 {[%clk 00:02:18]} {[%emt 00:00:31]} 45. h7
{[%clk 00:03:03]} {[%emt 00:00:01]} Rh2 {[%clk 00:02:26]} {[%emt 00:00:02]} 46.
Kg7 {[%clk 00:03:12]} {[%emt 00:00:01]} Kd7 {[%clk 00:02:30]} {[%emt 00:00:06]}
47. h8=Q {[%clk 00:03:18]} {[%emt 00:00:04]} Rxh8 {[%clk 00:02:37]} {[%emt
00:00:03]} 48. Kxh8 {[%clk 00:03:27]} {[%emt 00:00:01]} Ne7 {[%clk 00:02:43]}
{[%emt 00:00:04]} 49. Kg7 {[%clk 00:03:15]} {[%emt 00:00:22]} f4 {[%clk
00:02:42]} {[%emt 00:00:11]} 50. Kf6 {[%clk 00:03:04]} {[%emt 00:00:20]} Nf5
{[%clk 00:02:36]} {[%emt 00:00:17]} 51. Ra7+ {[%clk 00:03:09]} {[%emt
00:00:05]} Kd8 {[%clk 00:02:44]} {[%emt 00:00:03]} 52. Kxg6 {[%clk 00:02:43]}
{[%emt 00:00:35]} Nxd4 {[%clk 00:02:52]} {[%emt 00:00:02]} 53. Kf6 {[%clk
00:02:47]} {[%emt 00:00:05]} f3 {[%clk 00:02:57]} {[%emt 00:00:05]} 54. g6
{[%clk 00:02:42]} {[%emt 00:00:15]} f2 {[%clk 00:02:50]} {[%emt 00:00:17]} 55.
Ra1 {[%clk 00:02:51]} {[%emt 00:00:02]} Nb3 {[%clk 00:02:51]} {[%emt 00:00:08]}
56. Rh1 {[%clk 00:02:41]} {[%emt 00:00:20]} Nxc5 {[%clk 00:02:45]} {[%emt
00:00:17]} 57. g7 {[%clk 00:02:48]} {[%emt 00:00:04]} Ne4+ {[%clk 00:02:42]}
{[%emt 00:00:13]} 58. Ke5 {[%clk 00:02:33]} {[%emt 00:00:25]} Kc7 {[%clk
00:02:39]} {[%emt 00:00:12]} 59. g8=Q {[%clk 00:02:39]} {[%emt 00:00:04]} Kb7
{[%clk 00:02:44]} {[%emt 00:00:05]} 60. Qg2 {[%clk 00:02:40]} {[%emt 00:00:09]}
Kb6 {[%clk 00:02:48]} {[%emt 00:00:06]} 61. Rf1 {[%clk 00:02:44]} {[%emt
00:00:06]} Kb5 {[%clk 00:02:50]} {[%emt 00:00:07]} 62. Rxf2 {[%clk 00:02:53]}
{[%emt 00:00:02]} Nxf2 {[%clk 00:02:58]} {[%emt 00:00:02]} 63. Qxf2 {[%clk
00:03:02]} Kc4 {[%clk 00:03:05]} {[%emt 00:00:04]} 64. Qc2+ {[%clk 00:03:09]}
{[%emt 00:00:02]} Kb5 {[%clk 00:03:13]} {[%emt 00:00:02]} 65. Kd6 {[%clk
00:03:17]} {[%emt 00:00:02]} Kb4 {[%clk 00:03:20]} {[%emt 00:00:03]} 66. Qxc6
{[%clk 00:03:25]} {[%emt 00:00:02]} d4 {[%clk 00:03:27]} {[%emt 00:00:03]} 67.
Qe4 {[%clk 00:03:27]} {[%emt 00:00:07]} Kb3 {[%clk 00:03:29]} {[%emt 00:00:09]}
68. Qxd4 {[%clk 00:03:34]} {[%emt 00:00:03]} Ka2 {[%clk 00:03:34]} {[%emt
00:00:05]} 69. b4 {[%clk 00:03:27]} {[%emt 00:00:17]} Ka3 {[%clk 00:03:37]}
{[%emt 00:00:07]} 70. b5 {[%clk 00:03:32]} {[%emt 00:00:05]} Ka2 {[%clk
00:03:46]} {[%emt 00:00:01]} 71. Qb4 {[%clk 00:03:36]} {[%emt 00:00:06]} Ka1
{[%clk 00:03:54]} {[%emt 00:00:02]} 72. b6 {[%clk 00:03:45]} {[%emt 00:00:02]}
Ka2 {[%clk 00:04:01]} {[%emt 00:00:01]} 73. b7 {[%clk 00:03:54]} {[%emt
00:00:02]} Ka1 {[%clk 00:04:10]} {[%emt 00:00:01]} 74. b8=R {[%emt 00:00:04]}
Ka2 {[%clk 00:04:17]} {[%emt 00:00:02]} 75. Qa4# {[%clk 00:03:57]} {[%emt
00:00:01]} 1-0

[Event "British Rapidplay Championship 2023"]
[Site "Mercure Bradford, Bankfield Hotel"]
[Date "2023.04.15"]
[Round "2.11"]
[White "Pink, Joshua"]
[Black "Shaw, Peter"]
[Result "0-1"]
[TimeControl "15 minutes plus 10 seconds per move"]
[WhiteElo "1824"]
[BlackElo "2231"]

1. e4 {[%clk 00:15:13]} {[%emt 00:00:03]} c6 {[%clk 00:15:09]} {[%emt
00:00:15]} 2. d4 {[%clk 00:15:22]} {[%emt 00:00:02]} d5 {[%clk 00:15:18]}
{[%emt 00:00:01]} 3. e5 {[%clk 00:15:30]} {[%emt 00:00:01]} Bf5 {[%clk
00:15:23]} {[%emt 00:00:05]} 4. Nc3 {[%clk 00:15:38]} {[%emt 00:00:02]} e6
{[%clk 00:15:30]} {[%emt 00:00:04]} 5. g4 {[%clk 00:15:46]} {[%emt 00:00:01]}
Bg6 {[%clk 00:15:38]} {[%emt 00:00:02]} 6. Nge2 {[%clk 00:15:55]} {[%emt
00:00:01]} c5 {[%clk 00:15:32]} {[%emt 00:00:17]} 7. h4 {[%emt 00:01:12]} h6
{[%clk 00:13:29]} {[%emt 00:01:04]} 8. h5 {[%clk 00:16:09]} {[%emt 00:00:04]}
Bh7 {[%clk 00:13:38]} {[%emt 00:00:01]} 9. Be3 {[%clk 00:16:17]} Nc6 {[%clk
00:13:39]} {[%emt 00:00:10]} 10. f4 {[%clk 00:15:51]} {[%emt 00:00:36]} cxd4
{[%clk 00:12:56]} {[%emt 00:00:52]} 11. Nxd4 {[%clk 00:15:54]} {[%emt
00:00:07]} Nxd4 {[%clk 00:12:59]} {[%emt 00:00:08]} 12. Qxd4 {[%clk 00:15:40]}
{[%emt 00:00:24]} Ne7 {[%clk 00:13:06]} {[%emt 00:00:03]} 13. f5 {[%clk
00:13:18]} {[%emt 00:02:32]} Nc6 {[%clk 00:12:01]} {[%emt 00:01:15]} 14. Bb5
{[%clk 00:12:54]} {[%emt 00:00:34]} Be7 {[%clk 00:09:59]} {[%emt 00:02:11]} 15.
fxe6 {[%clk 00:12:27]} {[%emt 00:00:38]} fxe6 {[%clk 00:10:00]} {[%emt
00:00:09]} 16. Rf1 {[%clk 00:12:12]} {[%emt 00:00:25]} Rf8 {[%clk 00:05:59]}
{[%emt 00:04:11]} 17. O-O-O {[%clk 00:11:34]} {[%emt 00:00:47]} a6 {[%clk
00:05:41]} {[%emt 00:00:29]} 18. Rxf8+ {[%clk 00:11:17]} {[%emt 00:00:27]} Kxf8
{[%clk 00:05:42]} {[%emt 00:00:09]} 19. Bxc6 {[%clk 00:10:15]} {[%emt
00:01:12]} bxc6 {[%clk 00:05:51]} {[%emt 00:00:02]} 20. Rf1+ {[%clk 00:09:38]}
{[%emt 00:00:46]} Kg8 {[%clk 00:05:51]} {[%emt 00:00:09]} 21. Ne2 {[%clk
00:09:23]} {[%emt 00:00:26]} c5 {[%clk 00:05:06]} {[%emt 00:00:55]} 22. Qd2
{[%clk 00:08:26]} {[%emt 00:01:07]} d4 {[%clk 00:04:52]} {[%emt 00:00:24]} 23.
Bf4 {[%clk 00:08:30]} {[%emt 00:00:05]} Qd5 {[%clk 00:03:47]} {[%emt 00:01:15]}
24. Kb1 {[%clk 00:08:07]} {[%emt 00:00:33]} d3 {[%clk 00:03:39]} {[%emt
00:00:19]} 25. cxd3 {[%clk 00:06:48]} {[%emt 00:01:29]} Qxd3+ {[%clk 00:03:45]}
{[%emt 00:00:04]} 26. Ka1 {[%clk 00:06:57]} Rd8 {[%clk 00:03:24]} {[%emt
00:00:31]} 27. Rd1 {[%clk 00:06:21]} {[%emt 00:00:46]} Qf3 {[%clk 00:02:30]}
{[%emt 00:01:04]} 28. Qe1 {[%clk 00:05:09]} {[%emt 00:01:22]} Rxd1+ {[%clk
00:01:54]} {[%emt 00:00:46]} 29. Qxd1 {[%clk 00:05:17]} {[%emt 00:00:02]} Qxg4
{[%clk 00:02:02]} {[%emt 00:00:01]} 30. a3 {[%clk 00:04:09]} {[%emt 00:01:18]}
Qxh5 {[%clk 00:02:10]} {[%emt 00:00:03]} 31. Qd2 {[%clk 00:03:32]} {[%emt
00:00:47]} Qh1+ {[%clk 00:02:15]} {[%emt 00:00:05]} 32. Ka2 {[%clk 00:03:41]}
{[%emt 00:00:01]} Qd5+ {[%clk 00:02:21]} {[%emt 00:00:04]} 33. Qxd5 {[%clk
00:03:49]} {[%emt 00:00:01]} exd5 {[%clk 00:02:30]} {[%emt 00:00:02]} 34. Nc3
{[%clk 00:03:55]} {[%emt 00:00:03]} d4 {[%clk 00:02:32]} {[%emt 00:00:09]} 35.
Nd5 {[%clk 00:04:02]} {[%emt 00:00:03]} Kf7 {[%clk 00:02:30]} {[%emt 00:00:12]}
36. Kb3 {[%clk 00:04:04]} {[%emt 00:00:07]} g5 {[%clk 00:02:30]} {[%emt
00:00:10]} 37. Bg3 {[%clk 00:04:02]} {[%emt 00:00:12]} Bd3 {[%clk 00:02:35]}
{[%emt 00:00:05]} 38. Nc7 {[%clk 00:03:43]} {[%emt 00:00:30]} h5 {[%clk
00:02:30]} {[%emt 00:00:15]} 39. Bf2 {[%clk 00:02:12]} {[%emt 00:01:41]} h4
{[%clk 00:02:29]} {[%emt 00:00:11]} 40. Nd5 {[%clk 00:02:17]} {[%emt 00:00:04]}
Ke6 {[%clk 00:02:29]} {[%emt 00:00:10]} 0-1

[Event "British Rapidplay Championship 2023"]
[Site "Mercure Bradford, Bankfield Hotel"]
[Date "2023.04.15"]
[Round "2.13"]
[White "Hutchinson, Paul A"]
[Black "Bak, Andrew"]
[Result "0-1"]
[TimeControl "15 minutes plus 10 seconds per move"]
[WhiteElo "2184"]
[BlackElo "1959"]

1. d4 {[%clk 00:15:19]} {[%emt 00:00:01]} d5 {[%clk 00:15:18]} {[%emt
00:00:02]} 2. Bf4 {[%clk 00:15:27]} {[%emt 00:00:01]} Nf6 {[%clk 00:15:26]}
{[%emt 00:00:02]} 3. e3 {[%emt 00:00:04]} c5 {[%clk 00:15:33]} 4. Nf3 {[%clk
00:15:41]} {[%emt 00:00:05]} Nc6 {[%clk 00:15:41]} {[%emt 00:00:02]} 5. Nbd2
{[%clk 00:15:49]} {[%emt 00:00:02]} cxd4 {[%clk 00:15:32]} {[%emt 00:00:19]} 6.
exd4 {[%clk 00:15:57]} {[%emt 00:00:02]} Bg4 {[%clk 00:15:09]} {[%emt
00:00:33]} 7. c3 {[%clk 00:16:04]} {[%emt 00:00:03]} e6 {[%clk 00:15:11]}
{[%emt 00:00:08]} 8. Qa4 {[%clk 00:15:37]} {[%emt 00:00:39]} Bd6 {[%clk
00:14:53]} {[%emt 00:00:25]} 9. Ne5 {[%clk 00:15:09]} {[%emt 00:00:38]} Bxe5
{[%clk 00:15:00]} {[%emt 00:00:03]} 10. dxe5 {[%clk 00:14:10]} {[%emt
00:01:09]} Nd7 {[%clk 00:14:51]} {[%emt 00:00:19]} 11. Bb5 {[%clk 00:14:03]}
{[%emt 00:00:17]} Qc7 {[%clk 00:13:11]} {[%emt 00:01:49]} 12. Bg3 {[%clk
00:12:28]} {[%emt 00:01:45]} Bf5 {[%clk 00:11:42]} {[%emt 00:01:39]} 13. Nf3
{[%emt 00:01:08]} O-O {[%clk 00:10:46]} 14. O-O {[%clk 00:12:43]} {[%emt
00:00:02]} Be4 {[%clk 00:09:41]} {[%emt 00:01:16]} 15. Ng5 {[%clk 00:09:15]}
{[%emt 00:03:38]} Bg6 {[%clk 00:07:19]} {[%emt 00:02:32]} 16. f4 {[%clk
00:08:53]} {[%emt 00:00:32]} a6 {[%clk 00:07:19]} {[%emt 00:00:10]} 17. Bxc6
{[%clk 00:08:19]} {[%emt 00:00:45]} bxc6 {[%clk 00:07:19]} {[%emt 00:00:09]} 18.
Qd4 {[%clk 00:07:56]} {[%emt 00:00:32]} c5 {[%clk 00:06:53]} {[%emt 00:00:36]}
19. Qe3 {[%clk 00:08:03]} {[%emt 00:00:02]} c4 {[%clk 00:06:56]} {[%emt
00:00:08]} 20. Bf2 {[%clk 00:07:22]} {[%emt 00:00:51]} Rab8 {[%clk 00:07:02]}
{[%emt 00:00:04]} 21. Qd2 {[%clk 00:07:29]} {[%emt 00:00:02]} Rb7 {[%clk
00:06:15]} {[%emt 00:00:58]} 22. Bd4 {[%clk 00:06:23]} {[%emt 00:01:16]} Nc5
{[%clk 00:06:14]} {[%emt 00:00:10]} 23. Qe3 {[%clk 00:05:36]} {[%emt 00:00:57]}
Rc8 {[%clk 00:04:04]} {[%emt 00:02:21]} 24. g4 {[%clk 00:04:58]} {[%emt
00:00:48]} h6 {[%clk 00:03:44]} {[%emt 00:00:31]} 25. f5 {[%clk 00:04:59]}
{[%emt 00:00:09]} exf5 {[%clk 00:03:25]} {[%emt 00:00:29]} 26. gxf5 {[%clk
00:05:07]} {[%emt 00:00:02]} Bh5 {[%clk 00:03:10]} {[%emt 00:00:25]} 27. Nh3
{[%clk 00:04:11]} {[%emt 00:01:06]} Rxb2 {[%clk 00:01:44]} {[%emt 00:01:37]} 28.
Nf4 {[%clk 00:04:19]} {[%emt 00:00:01]} Bg4 {[%clk 00:01:44]} {[%emt 00:00:10]}
29. Ng2 {[%clk 00:04:10]} {[%emt 00:00:19]} Ne4 {[%clk 00:01:13]} {[%emt
00:00:42]} 30. Qf4 {[%clk 00:04:19]} {[%emt 00:00:01]} Bh3 {[%clk 00:01:16]}
{[%emt 00:00:07]} 31. Ne3 {[%clk 00:04:04]} {[%emt 00:00:24]} Bxf1 {[%clk
00:01:20]} {[%emt 00:00:06]} 32. Rxf1 {[%clk 00:04:12]} {[%emt 00:00:01]} Rcb8
{[%clk 00:01:15]} {[%emt 00:00:16]} 33. Nxd5 {[%clk 00:04:17]} {[%emt
00:00:05]} Qd8 {[%clk 00:01:11]} {[%emt 00:00:14]} 34. Qxe4 {[%clk 00:04:24]}
{[%emt 00:00:02]} Qg5+ {[%clk 00:01:20]} {[%emt 00:00:01]} 0-1